lending/lending_fUSD_20260211
["ID","MTS","AMOUNT","RATE_DAILY","PERIOD"]
[405103814,1770822644629,-150.0,0.00019946,2]
[405103815,1770822644639,-356987.88607736,0.0001995,15]
[405103816,1770822644648,-177.01848,0.0001995,2]
[405103817,1770822644658,-177.01848,0.0001995,2]
[405103818,1770822644667,-177.01848,0.0001995,2]
[405103819,1770822644676,-177.01848,0.0001995,2]
[405103820,1770822644685,-397.949574,0.0001995,2]
[405103821,1770822644694,-397.949574,0.0001995,2]
[405103822,1770822644703,-397.949574,0.0001995,2]
[405103823,1770822644712,-397.949574,0.0001995,2]
[405103824,1770822644721,-150.0,0.00019962,2]
[405103825,1770822644731,-150.0,0.00019977,2]
[405103826,1770822644741,-125198.6279014,0.00019981,2]
[405103827,1770822644751,-1535.38922159,0.0002,2]
[405103828,1770822644767,-176.74902392,0.0002,2]
[405103829,1770822644776,-1469.91312986,0.0002,5]
[405103830,1770822644785,-4869.55346463,0.0002,2]
[405103831,1770822644796,-150.0,0.0002,2]
[405103832,1770822644805,-212.65901312,0.0002,2]
[405103833,1770822644814,-2004.96022295,0.0002,2]
[405103834,1770822645059,-10000.0,0.0002,2]
[405103835,1770822645070,-150.0,0.0002,10]
[405103836,1770822645080,-189.42,0.0002,2]
[405103837,1770822645090,-200.0,0.0002,2]
[405103838,1770822645099,-253.25423281,0.0002,2]
[405103839,1770822645108,-1000.0,0.0002,7]
[405103840,1770822645118,-155.34959577,0.0002013,2]
[405103841,1770822645127,-275.0809771,0.00020188,5]
[405103842,1770822645136,-350.0,0.00020274,2]
[405103843,1770822645146,-1108.9488061,0.00020285,2]
[405103844,1770822645156,-1288.0,0.00020329,2]
[405103845,1770822645165,-617.0,0.00020329,2]
[405103846,1770822645175,-3487.0,0.00020329,2]
[405103847,1770822645184,-1273.0,0.00020329,2]
[405103848,1770822645194,-1207.0,0.00020329,2]
[405103849,1770822645203,-918.0,0.00020329,2]
[405103850,1770822645213,-5966.0,0.00020329,2]
[405103851,1770822645222,-2449.0,0.00020329,2]
[405103852,1770822645231,-6590.0,0.00020329,2]
[405103853,1770822645241,-150.0,0.00020555,2]
[405103854,1770822645251,-150.0,0.00020555,2]
[405103855,1770822645267,-247.4399247,0.00020795,2]
[405103856,1770822645276,-450.0,0.00020822,2]
[405103857,1770822645285,-161.14,0.00020856,2]
[405103858,1770822645296,-3026.38658314,0.00021,2]
[405103859,1770822645306,-11712.14398847,0.00021,2]
[405103860,1770822645315,-2000.0,0.00021,2]
[405103861,1770822645325,-276.0,0.00021265,12]
[405103862,1770822645335,-550.0,0.0002137,2]
[405103863,1770822645345,-155.34959577,0.00021568,2]
[405103864,1770822645354,-155.0,0.00021599,2]
[405103865,1770822645364,-87156.3889297,0.00021756,2]
[405103866,1770822645374,-220557.2268024,0.00021756,2]
[405103867,1770822645383,-59801.0483447,0.00021758,2]
[405103868,1770822645393,-5000.0,0.00021918,2]
[405103869,1770822645403,-166.0,0.00021918,2]
[405103870,1770822645414,-166.0,0.00021918,2]
[405103871,1770822645423,-166.0,0.00021918,2]
[405103872,1770822645433,-166.0,0.00021918,2]
[405103873,1770822645442,-166.0,0.00021918,2]
[405103874,1770822645452,-166.0,0.00021918,2]
[405103875,1770822645461,-166.0,0.00021918,2]
[405103876,1770822645472,-166.0,0.00021918,2]
[405103877,1770822645481,-167.6327206,0.00021918,2]
[405103878,1770822645491,-650.0,0.00021918,2]
[405103879,1770822645501,-800.0,0.00021918,2]
[405103880,1770822645522,-800.0,0.00021918,2]
[405103881,1770822645542,-800.0,0.00021918,2]
[405103882,1770822645560,-692.63835226,0.00021918,2]
[405103883,1770822645576,-559.67910915,0.00021918,2]
[405103884,1770822645587,-1670.28,0.00022,7]
[405103885,1770822645598,-151.8891,0.00022,2]
[405103886,1770822645610,-5000.0,0.00022,3]
[405103887,1770822645621,-57943.54,0.00022,2]
[405103888,1770822645632,-25824.23071791,0.00022001,2]
[405103889,1770822645652,-1653.8996,0.00022001,2]
[405103890,1770822645712,-2266.94355509,0.00022001,2]
[405103892,1770822646018,-151.0,0.00019,2]
[405103893,1770822646028,-8508.62166154,0.00022001,2]
[405103894,1770822646041,-280.81358606,0.00022001,2]
[405103896,1770822646057,-901.26754451,0.00022001,2]
[405103897,1770822646072,-16555.5,0.00022001,2]
[405103898,1770822646128,-335.5,0.00022001,2]
[405103899,1770822646146,-6600.0,0.00022001,2]
[405103900,1770822646159,-359.28047503,0.00022001,2]
[405103901,1770822646285,-1576.81539674,0.00022001,2]
[405103902,1770822646301,-9579.99999972,0.00022001,2]
[405103903,1770822646313,-267.372,0.00022001,2]
[405103904,1770822646325,-5349.0,0.00022001,2]
[405103905,1770822646337,-930.1885,0.00022001,2]
[405103906,1770822646348,-290.75,0.00022001,2]
[405103907,1770822646412,-558.90558329,0.00022001,2]
[405103908,1770822672124,519.73,0.0002,30]
[405103912,1770823004065,504.0,0.00035616,120]
[405103913,1770823122731,1272.9138785,0.00035616,120]
[405103918,1770823304132,20000.0,0.00035616,120]
[405103919,1770823367060,20000.0,0.00035616,120]
[405103933,1770823682368,20000.0,0.00035616,120]
[405103938,1770823727630,20000.0,0.00035616,120]
[405103961,1770823832382,-271.0,0.00014655,2]
[405103962,1770823832392,-60.345,0.00014668,2]
[405103963,1770823832404,-2162.61598113,0.00014668,2]
[405103964,1770823832417,-384.71901887,0.00014668,2]
[405103965,1770823832427,-154.41087706,0.00014673,2]
[405103966,1770823832437,-405.3037692,0.00014875,2]
[405103967,1770823832459,-1202.85855952,0.00014875,2]
[405103968,1770823832469,-195.70910877,0.00015099,4]
[405103969,1770823832481,-125.89089123,0.00015099,4]
[405103970,1770823832491,-124.10910877,0.0001539,2]
[405103971,1770823832503,-43.89089123,0.0001539,2]
[405103972,1770823832512,-531.85910877,0.00015391,2]
[405103973,1770823832532,-2738.33598373,0.00015391,2]
[405103974,1770823832543,-501.00324206,0.00015391,2]
[405103975,1770823832555,-19.93166544,0.00015391,2]
[405103976,1770823832564,-221.6,0.00015589,4]
[405103978,1770823832574,-259.7601034,0.000158,2]
[405103982,1770823838296,-40.2398966,0.000158,2]
[405103983,1770823838307,-1662.1683409,0.00015801,2]
[405103984,1770823838317,-452.52,0.00015897,2]
[405103985,1770823838327,-154.41087705,0.00015898,2]
[405103986,1770823838338,-1263.53097941,0.00015929,2]
[405103987,1770823838352,-588.88902059,0.00015929,2]
[405103988,1770823838362,-364.86,0.00015996,2]
[405103989,1770823838373,-271.0,0.00015997,2]
[405103991,1770823838386,-2775.25097941,0.00015998,2]
[405103994,1770823838407,-511.0,0.00015998,2]
[405103996,1770823838421,-10082.27454813,0.00015998,2]
[405103997,1770823838433,-9476.39340091,0.00015998,2]
[405103998,1770823838452,-546.92652658,0.00015998,2]
[405103999,1770823838467,-1396.78893979,0.00015998,2]
[405104000,1770823838479,-49504.09570518,0.00015998,2]
[405104001,1770823838490,-1682.1727,0.00015998,2]
[405104002,1770823838500,-2500.0,0.00015998,2]
[405104003,1770823838521,-166.66,0.00016051,2]
[405104004,1770823838533,-169082.43349224,0.00016098,2]
[405104005,1770823838544,-250.0,0.00016121,2]
[405104006,1770823838554,-1000.0,0.00016203,2]
[405104007,1770823838564,-151.8891,0.000163,2]
[405104008,1770823838574,-8000.0,0.000163,3]
[405104009,1770823838585,-500.0,0.00016333,2]
[405104010,1770823838595,-500.0,0.00016333,2]
[405104011,1770823838605,-500.0,0.00016333,2]
[405104012,1770823838614,-474.03942024,0.00016333,2]
[405104013,1770823838624,-407.26724634,0.0001642,2]
[405104014,1770823838635,-166.66,0.0001658,2]
[405104015,1770823838645,-452.52,0.00016692,2]
[405104016,1770823838656,-1716.17435308,0.0001675,2]
[405104017,1770823838666,-119479.24085635,0.00017,2]
[405104018,1770823838679,-1542.02172142,0.00017,2]
[405104019,1770823838691,-2320.58896356,0.00017,2]
[405104020,1770823838718,-43814.0666411,0.00017,2]
[405104021,1770823838731,-511.70554514,0.00017,2]
[405104022,1770823838744,-11358.14381081,0.00017,2]
[405104023,1770823838758,-14013.20835788,0.00017,2]
[405104024,1770823838770,-23894.96710464,0.00017,2]
[405104025,1770823838786,-1966.54436356,0.00017,2]
[405104026,1770823838808,-638.55537377,0.00017,2]
[405104027,1770823838825,-617.55139047,0.00017,2]
[405104029,1770823838846,-1323.26478544,0.00017,2]
[405104032,1770823838874,-564.0886184,0.00017,2]
[405104033,1770823838886,-18048.31740234,0.00017,2]
[405104036,1770823840347,-42078.49105964,0.00017,2]
[405104037,1770823840357,-3380.05905852,0.0001701,2]
[405104038,1770823840367,-166.66,0.0001711,2]
[405104039,1770823840377,-150.0,0.00017246,2]
[405104040,1770823840387,-277.35679052,0.00017373,2]
[405104041,1770823840396,-452.52,0.00017487,2]
[405104042,1770823840407,-7000.0,0.000175,6]
[405104043,1770823840417,-3380.05905846,0.00017531,2]
[405104044,1770823840427,-155.34959577,0.00017543,2]
[405104045,1770823840436,-14100.0,0.000176,6]
[405104046,1770823840446,-1000.0,0.00017618,2]
[405104047,1770823840456,-166.66,0.0001764,2]
[405104048,1770823840468,-1770.18036525,0.000177,2]
[405104049,1770823840477,-2373.78165332,0.000177,6]
[405104050,1770823840501,-534.0,0.000177,6]
[405104051,1770823840525,-426.7469905,0.000177,6]
[405104052,1770823840855,-859.34968,0.000177,6]
[405104053,1770823840868,-17006.12167618,0.000177,6]
[405104054,1770823840878,-1330.91784204,0.00017707,2]
[405104055,1770823840888,-28200.0,0.000178,6]
[405104056,1770823840898,-160.0,0.00017865,2]
[405104057,1770823840908,-150.95915695,0.00017886,2]
[405104058,1770823840917,-35300.0,0.000179,6]
[405104060,1770823840931,-379.49734115,0.000179,2]
[405104061,1770823840941,-386.70731038,0.000179,2]
[405104062,1770823840951,-10000.0,0.000179,2]
[405104063,1770823840960,-2278.47712921,0.000179,2]
[405104064,1770823840973,-192.55751107,0.000179,2]
[405104065,1770823840983,-6503.17623095,0.000179,2]
[405104066,1770823840993,-392.67596648,0.00017921,2]
[405104067,1770823841003,-500.0,0.00017999,2]
[405104068,1770823841012,-194.16755423,0.00017999,2]
[405104069,1770823841022,-500.0,0.00017999,2]
[405104070,1770823841031,-500.0,0.00017999,2]
[405104071,1770823841041,-229.47877651,0.00017999,2]
[405104072,1770823841051,-500.0,0.00017999,2]
[405104073,1770823841060,-500.0,0.00017999,2]
[405104074,1770823841070,-500.0,0.00017999,2]
[405104075,1770823841079,-500.0,0.00017999,2]
[405104076,1770823841089,-500.0,0.00017999,2]
[405104077,1770823841098,-595.75919344,0.00017999,2]
[405104078,1770823841426,-500.0,0.00017999,2]
[405104079,1770823841436,-500.0,0.00017999,2]
[405104080,1770823841446,-200.0,0.00017999,2]
[405104081,1770823841455,-150.0,0.00018,2]
[405104082,1770823841466,-4685.51599946,0.00018,2]
[405104083,1770823841476,-150.0,0.00018,2]
[405104084,1770823841485,-11392.07976116,0.00018,2]
[405104085,1770823841495,-3469980.47872174,0.00018,2]
[405104086,1770823841504,-4628.39340101,0.00018,2]
[405104087,1770823841514,-911147.07962227,0.00018,2]
[405104104,1770823844601,-103094.59976761,0.00018,2]
[405104105,1770823845801,-812.81999824,0.00018,2]
[405104106,1770823845812,-331.99464,0.00018,2]
[405104125,1770823846548,-3995.05644,0.00018,2]
[405104298,1770824041664,20000.0,0.00035616,120]
[405104310,1770824139218,-160.86444378,0.00014773,2]
[405104331,1770824193098,10000.0,0.00035616,120]
[405104332,1770824210651,10000.0,0.00035616,120]
[405104337,1770824230816,10000.0,0.00035616,120]
[405104348,1770824246428,10000.0,0.00035616,120]
[405104349,1770824261816,9044.1,0.00035616,120]
[405104350,1770824342039,20000.0,0.00035616,120]
[405104369,1770824641848,20000.0,0.00035616,120]
[405104408,1770824942402,20000.0,0.00035616,120]
[405104421,1770825031390,-166.66,0.00014282,2]
[405104422,1770825031400,-129.13143995,0.00014282,2]
[405104423,1770825031412,-138.86856005,0.00014282,2]
[405104424,1770825031422,-166.66,0.00014583,2]
[405104425,1770825031431,-275.37251385,0.000146,5]
[405104426,1770825031451,-620.42829203,0.000146,5]
[405104427,1770825031462,-1052.16948953,0.000146,5]
[405104428,1770825031511,-259.85,0.000146,5]
[405104429,1770825031523,-2279.48107587,0.000146,5]
[405104445,1770825031820,-412.69862872,0.000146,5]
[405104446,1770825031830,-176.27637127,0.000147,5]
[405104447,1770825031907,-658.19883048,0.000147,5]
[405104448,1770825031919,-300.0,0.000147,5]
[405104453,1770825038304,-8765.52479825,0.000147,5]
[405104454,1770825038314,-400.32302522,0.000147,2]
[405104455,1770825038324,-342.36095257,0.00014773,2]
[405104458,1770825038334,-14800.0,0.000148,5]
[405104460,1770825038343,-166.66,0.00014883,2]
[405104462,1770825038353,-19800.0,0.000149,5]
[405104463,1770825038363,-500.0,0.00014928,2]
[405104464,1770825038372,-3933.78,0.00014975,2]
[405104465,1770825038382,-1654.22,0.00015,2]
[405104466,1770825038391,-1836.32442002,0.00015142,2]
[405104467,1770825038401,-166.66,0.00015184,2]
[405104468,1770825038410,-11796.77286146,0.00015332,2]
[405104469,1770825038419,-192.55751107,0.00015332,2]
[405104470,1770825038429,-386.70731038,0.00015332,2]
[405104471,1770825038438,-379.49734115,0.00015332,2]
[405104472,1770825038447,-1153.25926137,0.00015332,2]
[405104473,1770825038461,-1083.8627052,0.00015332,2]
[405104474,1770825038470,-155.20645213,0.00015397,2]
[405104475,1770825038480,-194.16755423,0.00015399,2]
[405104476,1770825038490,-500.0,0.00015399,2]
[405104477,1770825038499,-229.47877651,0.00015399,2]
[405104478,1770825038509,-396.27817621,0.00015399,2]
[405104479,1770825038519,-500.0,0.00015399,2]
[405104480,1770825038528,-424501.98708409,0.000154,2]
[405104481,1770825038543,-16317.37459625,0.000154,2]
[405104482,1770825038555,-1294.63949689,0.000154,2]
[405104483,1770825038614,-726.4,0.000154,2]
[405104613,1770825039884,-3057159.59882277,0.000154,2]
[405104615,1770825039894,-150.0,0.00015432,2]
[405104617,1770825039903,-166.66,0.00015485,2]
[405104619,1770825039912,-2500.0,0.00015499,2]
[405104620,1770825039921,-5132.21001746,0.000155,2]
[405104622,1770825039930,-11796.77286138,0.00015617,2]
[405104624,1770825039939,-189.05432291,0.00015629,2]
[405104626,1770825039951,-278.935,0.00015699,2]
[405104628,1770825039960,-776.5478061,0.0001571,2]
[405104630,1770825039969,-3375.5171,0.00015729,2]
[405104632,1770825039978,-6805.6412,0.00015729,2]
[405104635,1770825039989,-1000.0,0.00015729,2]
[405104636,1770825039998,-5132.21001745,0.00015767,2]
[405104637,1770825040008,-166.66,0.00015785,2]
[405104638,1770825040017,-349.08621114,0.000158,2]
[405104639,1770825040026,-1083.86270515,0.00015846,2]
[405104640,1770825040035,-3726.43,0.00015899,2]
[405104641,1770825040044,-11796.77286138,0.00015903,2]
[405104642,1770825040053,-151.72615529,0.00016,2]
[405104643,1770825040062,-5132.21001745,0.00016033,2]
[405104644,1770825040071,-11796.77286138,0.00016188,2]
[405104645,1770825040080,-5132.21001745,0.000163,2]
[405104646,1770825040089,-1083.86270515,0.00016359,2]
[405104647,1770825040098,-11796.77286138,0.00016473,2]
[405104648,1770825040107,-2056.27977915,0.00016524,2]
[405104649,1770825040116,-5132.21001745,0.00016567,2]
[405104650,1770825040125,-1153.25926132,0.0001657,2]
[405104651,1770825040134,-3016.09,0.00016619,2]
[405104652,1770825040144,-11796.77286138,0.00016759,2]
[405104653,1770825040154,-5132.21001745,0.00016833,2]
[405104654,1770825040163,-1083.86270515,0.00016873,2]
[405104655,1770825040172,-11796.77286138,0.00017044,2]
[405104656,1770825040180,-5132.21001745,0.000171,2]
[405104657,1770825040189,-11796.77286138,0.00017329,2]
[405104658,1770825040198,-5132.21001745,0.00017367,2]
[405104659,1770825040210,-1083.86270515,0.00017386,2]
[405104660,1770825040220,-155.34959577,0.00017543,2]
[405104661,1770825040230,-11796.77286138,0.00017615,2]
[405104662,1770825040239,-5132.21001745,0.00017633,2]
[405104663,1770825040247,-150.95915695,0.00017726,2]
[405104664,1770825040257,-24700.0,0.000178,6]
[405104665,1770825040268,-694.43,0.00017808,2]
[405104666,1770825040278,-500.0,0.00017808,2]
[405104667,1770825040287,-500.0,0.00017808,2]
[405104668,1770825040296,-500.0,0.00017808,2]
[405104669,1770825040305,-500.0,0.00017808,2]
[405104670,1770825040314,-500.0,0.00017808,2]
[405104671,1770825040323,-500.0,0.00017808,2]
[405104672,1770825040333,-500.0,0.00017808,2]
[405104673,1770825040342,-306.12732133,0.00017808,2]
[405104674,1770825040351,-500.0,0.00017808,2]
[405104675,1770825040361,-500.0,0.00017808,2]
[405104676,1770825040370,-500.0,0.00017808,2]
[405104677,1770825040379,-500.0,0.00017808,2]
[405104678,1770825040389,-500.0,0.00017808,2]
[405104679,1770825040398,-1153.25926132,0.00017809,2]
[405104680,1770825040408,-250.0,0.00017811,2]
[405104681,1770825040418,-160.0,0.00017816,2]
[405104682,1770825040428,-4900.0,0.000179,6]
[405104683,1770825040437,-5132.21001745,0.000179,2]
[405104684,1770825040446,-11796.77286138,0.000179,2]
[405104685,1770825040457,-1083.86270515,0.000179,2]
[405104686,1770825040466,-2276.23513829,0.00017906,2]
[405104687,1770825040475,-6293.0444382,0.00017993,2]
[405104688,1770825040484,-179.6402375,0.00017993,2]
[405104689,1770825040493,-76928.403933,0.00017993,2]
[405104690,1770825040503,-288.5273426,0.00017994,2]
[405104691,1770825040512,-21822.039312,0.00017994,2]
[405104692,1770825040521,-42139.5417957,0.00017994,2]
[405104693,1770825040531,-306985.8323756,0.00017994,2]
[405104694,1770825040540,-752310.67649843,0.00018,2]
[405104695,1770825040564,-6008.50315525,0.00018,2]
[405104696,1770825040577,-3336.62340853,0.00018,2]
[405104697,1770825040620,-2900196.48366338,0.00018,2]
[405104698,1770825040630,-150.0,0.00018,2]
[405104699,1770825040640,-4685.51599946,0.00018,2]
[405104700,1770825040650,-150.0,0.00018,2]
[405104701,1770825040659,-11392.07976116,0.00018,2]
[405104702,1770825040668,-390.0,0.00018,2]
[405104703,1770825040677,-390.0,0.00018,2]
[405104704,1770825040687,-390.0,0.00018,2]
[405104705,1770825040696,-390.0,0.00018,2]
[405104706,1770825040707,-390.0,0.00018,2]
[405104707,1770825040717,-390.0,0.00018,2]
[405104708,1770825040731,-390.0,0.00018,2]
[405104709,1770825040740,-390.0,0.00018,2]
[405104710,1770825040750,-390.0,0.00018,2]
[405104711,1770825040759,-398.0485272,0.00018,2]
[405104712,1770825040770,-150.0,0.00018,2]
[405104713,1770825040779,-150.0,0.00018,2]
[405104714,1770825040789,-1855.79897219,0.00018,2]
[405104715,1770825040799,-200.0,0.00018,2]
[405104716,1770825040808,-694.43,0.00018082,2]
[405104717,1770825040818,-3487.0,0.0001816,2]
[405104718,1770825040827,-1337.0,0.0001816,2]
[405104719,1770825040836,-1288.0,0.0001816,2]
[405104720,1770825040846,-617.0,0.0001816,2]
[405104721,1770825040855,-1273.0,0.0001816,2]
[405104722,1770825040864,-6590.0,0.0001816,2]
[405104723,1770825040873,-412.0,0.0001816,2]
[405104724,1770825041118,-2449.0,0.0001816,2]
[405104725,1770825041128,-166.66,0.0001817,2]
[405104726,1770825041138,-897.24936294,0.00018227,2]
[405104727,1770825041147,-1000.0,0.00018229,2]
[405104728,1770825041156,-452.52,0.00018282,2]
[405104729,1770825041166,-694.43,0.00018356,2]
[405104730,1770825041176,-1506.0,0.00018509,2]
[405104731,1770825041185,-155.0,0.00018509,2]
[405104732,1770825041194,-155.0,0.00018509,2]
[405104733,1770825041203,-1506.0,0.00018509,2]
[405104734,1770825041214,-152.0,0.00018509,2]
[405104735,1770825041223,-249.54096104,0.00018509,2]
[405104736,1770825041232,-155.0,0.00018509,2]
[405104737,1770825041242,-152.0,0.00018509,2]
[405104738,1770825041251,-155.0,0.00018509,2]
[405104739,1770825041261,-152.0,0.00018509,2]
[405104740,1770825041271,-159.0,0.00018509,2]
[405104741,1770825041280,-155.0,0.00018509,2]
[405104742,1770825041289,-152.0,0.00018509,2]
[405104743,1770825041298,-157.35594193,0.00018509,2]
[405104744,1770825041307,-151.0,0.00018509,2]
[405104745,1770825041316,-155.0,0.00018509,2]
[405104746,1770825041325,-152.0,0.00018509,2]
[405104747,1770825041334,-151.0,0.00018509,2]
[405104748,1770825041343,-152.0,0.00018509,2]
[405104749,1770825041352,-155.0,0.00018509,2]
[405104750,1770825041361,-151.0,0.00018509,2]
[405104751,1770825041372,-152.0,0.00018509,2]
[405104752,1770825041380,-155.0,0.00018509,2]
[405104753,1770825041389,-151.0,0.00018509,2]
[405104754,1770825041399,-152.0,0.00018509,2]
[405104755,1770825041408,-155.0,0.00018509,2]
[405104756,1770825041417,-151.0,0.00018509,2]
[405104757,1770825041426,-152.0,0.00018509,2]
[405104758,1770825041436,-155.0,0.00018509,2]
[405104759,1770825041445,-151.0,0.00018509,2]
[405104760,1770825041456,-250.57517887,0.00018509,2]
[405104761,1770825041466,-152.0,0.00018509,2]
[405104762,1770825041475,-151.0,0.00018509,2]
[405104763,1770825041484,-151.0,0.00018509,2]
[405104764,1770825041493,-152.0,0.00018509,2]
[405104765,1770825041502,-151.0,0.00018509,2]
[405104766,1770825041511,-152.0,0.00018509,2]
[405104767,1770825041521,-151.0,0.00018509,2]
[405104768,1770825041530,-152.0,0.00018509,2]
[405104769,1770825041539,-151.0,0.00018509,2]
[405104770,1770825041548,-152.0,0.00018509,2]
[405104771,1770825041558,-151.0,0.00018509,2]
[405104772,1770825041567,-167.43024397,0.00018509,2]
[405104773,1770825041577,-151.0,0.00018509,2]
[405104774,1770825041587,-151.0,0.00018509,2]
[405104775,1770825041598,-153.99186395,0.00018509,2]
[405104776,1770825041607,-392.67596648,0.00018532,2]
[405104777,1770825041617,-694.43,0.0001863,2]
[405104778,1770825041626,-166.66,0.000187,2]
[405104779,1770825041635,-481.54882897,0.00018791,2]
[405104780,1770825041644,-481.54882898,0.00018791,2]
[405104781,1770825041654,-694.43,0.00018904,2]
[405104782,1770825041663,-3631.23324025,0.00019,2]
[405104783,1770825041673,-792.0,0.00019,2]
[405104784,1770825041682,-987.0,0.00019,2]
[405104785,1770825041692,-1153.25926132,0.00019047,2]
[405104786,1770825041704,-452.52,0.00019076,2]
[405104787,1770825041714,-200.17092804,0.00019082,2]
[405104788,1770825041727,-694.45167531,0.00019178,2]
[405104789,1770825041736,-1738.07274027,0.00019178,2]
[405104790,1770825041745,-150.0,0.00019178,2]
[405104791,1770825041755,-150.11284277,0.00019178,2]
[405104792,1770825041764,-8070.0,0.00019234,2]
[405104793,1770825041773,-2496.19049742,0.00019288,2]
[405104794,1770825041783,-155.34959577,0.00019298,2]
[405104795,1770825041793,-3240.0,0.0001935,2]
[405104796,1770825041803,-340.0,0.00019635,15]
[405104797,1770825041811,-250.0,0.00019726,2]
[405104798,1770825041820,-349.08621111,0.00019817,2]
[405104799,1770825041830,-200.0,0.00019841,2]
[405104800,1770825041839,-240.0,0.00019899,2]
[405104801,1770825041848,-235257.66162361,0.0001995,15]
[405104814,1770825044830,-150.0,0.00019741,2]
[405104815,1770825044840,-2401.99999999,0.0001995,15]
[405104816,1770825045566,-819.11846508,0.0001995,15]
[405104817,1770825045579,-541.75992,0.0001995,15]
[405104818,1770825045593,-117967.34606868,0.0001995,15]
[405104819,1770825045603,-1000.0,0.0002,7]
[405104820,1770825045614,-150.0,0.0002,2]
[405104821,1770825045624,-163.85,0.0002,2]
[405104822,1770825045633,-1535.64042059,0.0002,2]
[405104823,1770825045643,-176.77794111,0.0002,2]
[405104824,1770825045653,-1470.14912119,0.0002,5]
[405104825,1770825045665,-4874.15799723,0.0002,2]
[405104826,1770825045674,-150.0,0.0002,10]
[405104827,1770825045684,-200.0,0.0002,2]
[405104828,1770825045694,-76928.403933,0.00020006,2]
[405104829,1770825045704,-288.5273426,0.00020007,2]
[405104830,1770825045714,-21822.039312,0.00020007,2]
[405104831,1770825045726,-42139.5417957,0.00020007,2]
[405104832,1770825045735,-190079.28821909,0.00020007,2]
[405104855,1770825302443,20000.0,0.00035616,120]
[405104874,1770825662195,20000.0,0.00035616,120]
[405104877,1770825810798,150.0,0.00035616,120]
[405104878,1770825868037,6400.0,0.00035616,120]
[405104879,1770826021490,2000.0,0.0003561,120]
[405104880,1770826021781,20000.0,0.00035616,120]
[405104895,1770826155863,703.61,9.2e-05,2]
[405104918,1770826231488,-1000.0,0.000147,5]
[405104919,1770826231498,-273.0,0.00014785,2]
[405104920,1770826231508,-197.77996,0.00014785,2]
[405104921,1770826231517,-2000.0,0.000148,5]
[405104922,1770826231528,-223.148,0.00014896,2]
[405104923,1770826231537,-3000.0,0.000149,5]
[405104924,1770826231549,-150.0,0.00014961,2]
[405104925,1770826231559,-487.10430916,0.00014985,2]
[405104926,1770826231568,-1200.0,0.00015072,2]
[405104927,1770826231578,-249.34729365,0.00015073,2]
[405104928,1770826231588,-252.00698751,0.00015073,2]
[405104929,1770826231598,-153.0,0.00015098,2]
[405104930,1770826231607,-300.0,0.00015098,2]
[405104931,1770826231617,-426.0,0.00015099,2]
[405104932,1770826231627,-300.0,0.00015099,2]
[405104933,1770826231637,-3438.21459566,0.000151,2]
[405104934,1770826231646,-2431.9684,0.000151,2]
[405104935,1770826231656,-189.05432291,0.00015173,2]
[405104947,1770826231935,-576.62963066,0.00015173,2]
[405104951,1770826231967,-360.07680314,0.00015173,2]
[405104953,1770826231977,-175.05518524,0.0001519,2]
[405104955,1770826231987,-202.27978627,0.00015191,2]
[405104956,1770826231997,-500.0,0.00015191,2]
[405104957,1770826232007,-522.64508925,0.00015191,2]
[405104958,1770826232017,-202.81840748,0.00015191,2]
[405104959,1770826232027,-500.0,0.00015191,2]
[405104960,1770826232037,-528.99656538,0.00015191,2]
[405104961,1770826232047,-300.0,0.00015199,2]
[405104962,1770826232059,-286.70149112,0.00015199,2]
[405104963,1770826232070,-500.0,0.00015199,2]